fUST/lending_fUST_20250518
["ID","MTS","AMOUNT","RATE_DAILY","PERIOD"]
[361370513,1747521050857,-450.0,0.00013972,2]
[361370514,1747521050866,-1105.75,0.00013972,2]
[361370515,1747521050875,-422.46777649,0.00014039,2]
[361370516,1747521050886,-160.0,0.00014039,2]
[361370517,1747521050896,-12634.18372584,0.00014039,2]
[361370518,1747521050906,-998.40506679,0.00014039,2]
[361370519,1747521050915,-160.0,0.00014039,2]
[361370520,1747521050925,-160.0,0.00014039,2]
[361370521,1747521050934,-314.40244118,0.00014039,2]
[361370522,1747521050943,-160.0,0.00014039,2]
[361370523,1747521050952,-212.29844686,0.0001404,2]
[361370524,1747521050961,-3762.69811069,0.00014078,2]
[361370525,1747521050971,-500.0,0.00014101,2]
[361370526,1747521050980,-446.84,0.00014109,2]
[361370527,1747521050989,-450.0,0.00014109,2]
[361370528,1747521050999,-450.0,0.00014109,2]
[361370529,1747521051008,-557.44,0.00014109,2]
[361370530,1747521051017,-379.46,0.00014109,2]
[361370531,1747521051026,-450.0,0.00014109,2]
[361370532,1747521051037,-527.94,0.00014109,2]
[361370533,1747521051047,-450.0,0.00014109,2]
[361370534,1747521051056,-362.18,0.00014109,2]
[361370535,1747521051067,-364.38,0.00014109,2]
[361370536,1747521051077,-450.0,0.00014109,2]
[361370537,1747521051089,-450.0,0.00014109,2]
[361370538,1747521051099,-450.0,0.00014109,2]
[361370539,1747521051109,-450.0,0.00014109,2]
[361370540,1747521051118,-450.0,0.00014109,2]
[361370541,1747521051127,-450.0,0.00014109,2]
[361370542,1747521051136,-1493.08,0.00014109,2]
[361370543,1747521051146,-593.66,0.00014109,2]
[361370544,1747521051155,-450.0,0.00014109,2]
[361370545,1747521051164,-450.0,0.00014109,2]
[361370546,1747521051174,-1073.48,0.00014109,2]
[361370547,1747521051308,-2017.34,0.00014109,2]
[361370548,1747521051320,-2081.27,0.00014109,2]
[361370549,1747521051331,-190.66,0.00014109,2]
[361370550,1747521051340,-685.93,0.00014109,2]
[361370551,1747521051349,-614.85,0.00014109,2]
[361370552,1747521051360,-554.21,0.00014109,2]
[361370553,1747521051370,-450.0,0.00014109,2]
[361370554,1747521051379,-450.0,0.00014109,2]
[361370555,1747521051388,-450.0,0.00014109,2]
[361370556,1747521051398,-450.0,0.00014109,2]
[361370557,1747521051408,-158.75,0.00014109,2]
[361370558,1747521051417,-450.0,0.00014109,2]
[361370559,1747521051427,-450.0,0.00014109,2]
[361370560,1747521051436,-450.0,0.00014109,2]
[361370561,1747521051445,-281.17,0.00014109,2]
[361370562,1747521051454,-469.75,0.00014109,2]
[361370563,1747521051463,-796.83,0.00014109,2]
[361370564,1747521051473,-450.0,0.00014109,2]
[361370565,1747521051483,-450.0,0.00014109,2]
[361370566,1747521051492,-458.42,0.00014109,2]
[361370567,1747521051503,-465.46,0.00014109,2]
[361370568,1747521051512,-450.0,0.00014109,2]
[361370569,1747521051521,-2788.01,0.00014109,2]
[361370570,1747521051532,-450.0,0.00014109,2]
[361370571,1747521051542,-450.0,0.00014109,2]
[361370572,1747521051551,-942.99,0.00014109,2]
[361370573,1747521051560,-2875.75,0.00014109,2]
[361370574,1747521051569,-572.41,0.00014109,2]
[361370575,1747521051579,-489.41,0.00014109,2]
[361370576,1747521051588,-450.0,0.00014109,2]
[361370577,1747521051598,-717.19,0.00014109,2]
[361370578,1747521051607,-608.2,0.00014109,2]
[361370579,1747521051616,-450.0,0.00014109,2]
[361370580,1747521051626,-590.87,0.00014109,2]
[361370581,1747521051635,-2312.02,0.00014109,2]
[361370582,1747521051645,-450.0,0.00014109,2]
[361370583,1747521051654,-1174.67,0.00014109,2]
[361370584,1747521051664,-450.0,0.00014109,2]
[361370585,1747521051674,-1225.05,0.00014109,2]
[361370586,1747521051683,-476.72,0.00014109,2]
[361370587,1747521051693,-486.2,0.00014109,2]
[361370588,1747521051702,-450.0,0.00014109,2]
[361370589,1747521051711,-233.8,0.00014109,2]
[361370590,1747521051720,-450.0,0.00014109,2]
[361370591,1747521051729,-1105.75,0.00014109,2]
[361370592,1747521051739,-500.0,0.00014245,2]
[361370593,1747521051748,-450.0,0.00014246,2]
[361370594,1747521051758,-450.0,0.00014246,2]
[361370595,1747521051766,-450.0,0.00014246,2]
[361370596,1747521051775,-450.0,0.00014246,2]
[361370597,1747521051785,-255.88,0.00014246,2]
[361370598,1747521051794,-450.0,0.00014246,2]
[361370599,1747521051803,-450.0,0.00014246,2]
[361370600,1747521051813,-1493.08,0.00014246,2]
[361370601,1747521051822,-593.66,0.00014246,2]
[361370602,1747521051831,-450.0,0.00014246,2]
[361370603,1747521051841,-1073.48,0.00014246,2]
[361370604,1747521051850,-2017.34,0.00014246,2]
[361370605,1747521051859,-2081.27,0.00014246,2]
[361370606,1747521051868,-685.93,0.00014246,2]
[361370607,1747521051877,-614.85,0.00014246,2]
[361370608,1747521051886,-450.0,0.00014246,2]
[361370609,1747521051895,-450.0,0.00014246,2]
[361370610,1747521051904,-450.0,0.00014246,2]
[361370611,1747521051913,-450.0,0.00014246,2]
[361370612,1747521051922,-450.0,0.00014246,2]
[361370613,1747521051931,-450.0,0.00014246,2]
[361370614,1747521051940,-450.0,0.00014246,2]
[361370615,1747521051950,-469.75,0.00014246,2]
[361370616,1747521051959,-796.83,0.00014246,2]
[361370617,1747521051968,-450.0,0.00014246,2]
[361370618,1747521051977,-450.0,0.00014246,2]
[361370619,1747521051986,-458.42,0.00014246,2]
[361370620,1747521051995,-465.46,0.00014246,2]
[361370621,1747521052004,-151.0,0.00014246,2]
[361370622,1747521052013,-412.86,0.00014246,2]
[361370623,1747521052022,-2788.01,0.00014246,2]
[361370624,1747521052031,-450.0,0.00014246,2]
[361370625,1747521052040,-450.0,0.00014246,2]
[361370626,1747521052049,-942.99,0.00014246,2]
[361370627,1747521052058,-2875.75,0.00014246,2]
[361370628,1747521052067,-572.41,0.00014246,2]
[361370629,1747521052076,-489.41,0.00014246,2]
[361370630,1747521052085,-450.0,0.00014246,2]
[361370631,1747521052093,-717.19,0.00014246,2]
[361370632,1747521052102,-608.2,0.00014246,2]
[361370633,1747521052111,-590.87,0.00014246,2]
[361370634,1747521052120,-450.0,0.00014246,2]
[361370635,1747521052130,-2312.02,0.00014246,2]
[361370636,1747521052140,-450.0,0.00014246,2]
[361370637,1747521052149,-1174.67,0.00014246,2]
[361370638,1747521052158,-450.0,0.00014246,2]
[361370639,1747521052167,-1225.05,0.00014246,2]
[361370640,1747521052176,-476.72,0.00014246,2]
[361370641,1747521052185,-486.2,0.00014246,2]
[361370642,1747521052194,-172.64,0.00014246,2]
[361370643,1747521052203,-450.0,0.00014246,2]
[361370644,1747521052212,-1105.75,0.00014246,2]
[361370645,1747521052221,-3762.69811069,0.00014317,2]
[361370646,1747521052230,-500.0,0.00014382,2]
[361370647,1747521052239,-450.0,0.00014383,2]
[361370648,1747521052249,-450.0,0.00014383,2]
[361370649,1747521052258,-450.0,0.00014383,2]
[361370650,1747521052267,-450.0,0.00014383,2]
[361370651,1747521052275,-450.0,0.00014383,2]
[361370652,1747521052284,-450.0,0.00014383,2]
[361370653,1747521052294,-1493.08,0.00014383,2]
[361370654,1747521052303,-593.66,0.00014383,2]
[361370655,1747521052312,-450.0,0.00014383,2]
[361370656,1747521052322,-1073.48,0.00014383,2]
[361370657,1747521052331,-2017.34,0.00014383,2]
[361370658,1747521052340,-2081.27,0.00014383,2]
[361370659,1747521052349,-685.93,0.00014383,2]
[361370660,1747521052359,-614.85,0.00014383,2]
[361370661,1747521052368,-450.0,0.00014383,2]
[361370662,1747521052377,-450.0,0.00014383,2]
[361370663,1747521052386,-231.84,0.00014383,2]
[361370664,1747521052395,-450.0,0.00014383,2]
[361370665,1747521052404,-450.0,0.00014383,2]
[361370666,1747521052413,-450.0,0.00014383,2]
[361370667,1747521052421,-450.0,0.00014383,2]
[361370668,1747521052430,-469.75,0.00014383,2]
[361370669,1747521052439,-796.83,0.00014383,2]
[361370670,1747521052449,-450.0,0.00014383,2]
[361370671,1747521052458,-450.0,0.00014383,2]
[361370672,1747521052467,-151.0,0.00014383,2]
[361370673,1747521052476,-458.42,0.00014383,2]
[361370674,1747521052485,-465.46,0.00014383,2]
[361370675,1747521052495,-151.0,0.00014383,2]
[361370676,1747521052504,-2788.01,0.00014383,2]
[361370677,1747521052513,-511.82,0.00014383,2]
[361370678,1747521052522,-450.0,0.00014383,2]
[361370679,1747521052531,-942.99,0.00014383,2]
[361370680,1747521052540,-2875.75,0.00014383,2]
[361370681,1747521052550,-572.41,0.00014383,2]
[361370682,1747521052559,-489.41,0.00014383,2]
[361370683,1747521052568,-450.0,0.00014383,2]
[361370684,1747521052578,-717.19,0.00014383,2]
[361370685,1747521052587,-608.2,0.00014383,2]
[361370686,1747521052600,-590.87,0.00014383,2]
[361370687,1747521052613,-450.0,0.00014383,2]
[361370688,1747521052628,-2312.02,0.00014383,2]
[361370689,1747521052640,-450.0,0.00014383,2]
[361370690,1747521052653,-1174.67,0.00014383,2]
[361370691,1747521052664,-450.0,0.00014383,2]
[361370692,1747521052677,-1225.05,0.00014383,2]
[361370693,1747521052689,-476.72,0.00014383,2]
[361370694,1747521052701,-486.2,0.00014383,2]
[361370695,1747521052713,-450.0,0.00014383,2]
[361370696,1747521052726,-1105.75,0.00014383,2]
[361370697,1747521052737,-500.0,0.00014519,2]
[361370698,1747521052752,-450.0,0.0001452,2]
[361370699,1747521052765,-450.0,0.0001452,2]
[361370700,1747521052777,-450.0,0.0001452,2]
[361370701,1747521052789,-157.161347,0.0001452,2]
[361370702,1747521052800,-450.0,0.0001452,2]
[361370703,1747521052812,-450.0,0.0001452,2]
[361370704,1747521052824,-450.0,0.0001452,2]
[361370705,1747521052837,-1493.08,0.0001452,2]
[361370706,1747521052850,-593.66,0.0001452,2]
[361370707,1747521052861,-450.0,0.0001452,2]
[361370708,1747521052873,-1073.48,0.0001452,2]
[361370709,1747521052884,-2017.34,0.0001452,2]
[361370710,1747521052894,-2081.27,0.0001452,2]
[361370711,1747521052906,-685.93,0.0001452,2]
[361370712,1747521052918,-614.85,0.0001452,2]
[361370713,1747521052930,-450.0,0.0001452,2]
[361370714,1747521052943,-450.0,0.0001452,2]
[361370716,1747521052956,-451.03,0.0001452,2]
[361370717,1747521052968,-450.0,0.0001452,2]
[361370718,1747521052981,-450.0,0.0001452,2]
[361370719,1747521052992,-450.0,0.0001452,2]
[361370720,1747521053006,-469.75,0.0001452,2]
[361370721,1747521053016,-796.83,0.0001452,2]
[361370722,1747521053027,-450.0,0.0001452,2]
[361370723,1747521053037,-450.0,0.0001452,2]
[361370724,1747521053047,-458.42,0.0001452,2]
[361370725,1747521053059,-465.46,0.0001452,2]
[361370726,1747521053072,-2788.01,0.0001452,2]
[361370727,1747521053087,-450.0,0.0001452,2]
[361370728,1747521053101,-942.99,0.0001452,2]
[361370729,1747521053111,-2875.75,0.0001452,2]
[361370730,1747521053122,-572.41,0.0001452,2]
[361370731,1747521053135,-489.41,0.0001452,2]
[361370732,1747521053149,-450.0,0.0001452,2]
[361370733,1747521053162,-717.19,0.0001452,2]
[361370734,1747521053174,-608.2,0.0001452,2]
[361370735,1747521053184,-590.87,0.0001452,2]
[361370736,1747521053194,-450.0,0.0001452,2]
[361370737,1747521053204,-2312.02,0.0001452,2]
[361370738,1747521053215,-450.0,0.0001452,2]
[361370739,1747521053225,-1174.67,0.0001452,2]
[361370740,1747521053239,-450.0,0.0001452,2]
[361370741,1747521053251,-1225.05,0.0001452,2]
[361370742,1747521053261,-486.2,0.0001452,2]
[361370743,1747521053273,-476.72,0.0001452,2]
[361370744,1747521053285,-450.0,0.0001452,2]
[361370745,1747521053295,-1105.75,0.0001452,2]
[361370746,1747521053306,-3762.69811069,0.00014557,2]
[361370747,1747521053318,-516.67685574,0.00014642,2]
[361370748,1747521053331,-500.0,0.00014656,2]
[361370749,1747521053344,-450.0,0.00014657,2]
[361370750,1747521053355,-450.0,0.00014657,2]
[361370751,1747521053365,-450.0,0.00014657,2]
[361370752,1747521053376,-450.0,0.00014657,2]
[361370753,1747521053387,-450.0,0.00014657,2]
[361370754,1747521053397,-450.0,0.00014657,2]
[361370755,1747521053409,-1493.08,0.00014657,2]
[361370756,1747521053420,-593.66,0.00014657,2]
[361370757,1747521053430,-450.0,0.00014657,2]
[361370758,1747521053441,-1073.48,0.00014657,2]
[361370759,1747521053452,-2017.34,0.00014657,2]
[361370760,1747521053463,-2081.27,0.00014657,2]
[361370761,1747521053474,-685.93,0.00014657,2]
[361370762,1747521053485,-614.85,0.00014657,2]
[361370763,1747521053498,-450.0,0.00014657,2]
[361370764,1747521053509,-450.0,0.00014657,2]
[361370765,1747521053519,-450.0,0.00014657,2]
[361370766,1747521053531,-266.02,0.00014657,2]
[361370767,1747521053542,-450.0,0.00014657,2]
[361370768,1747521053553,-469.75,0.00014657,2]
[361370769,1747521053564,-796.83,0.00014657,2]
[361370770,1747521053576,-450.0,0.00014657,2]
[361370771,1747521053587,-450.0,0.00014657,2]
[361370772,1747521053599,-458.42,0.00014657,2]
[361370773,1747521053609,-151.0,0.00014657,2]
[361370774,1747521053620,-465.46,0.00014657,2]
[361370775,1747521053632,-2788.01,0.00014657,2]
[361370776,1747521053644,-450.0,0.00014657,2]
[361370777,1747521053654,-942.99,0.00014657,2]
[361370778,1747521053665,-2875.75,0.00014657,2]
[361370779,1747521053676,-489.41,0.00014657,2]
[361370780,1747521053687,-572.41,0.00014657,2]
[361370781,1747521053699,-450.0,0.00014657,2]
[361370782,1747521053710,-717.19,0.00014657,2]
[361370783,1747521053722,-608.2,0.00014657,2]
[361370784,1747521053733,-590.87,0.00014657,2]
[361370785,1747521053744,-450.0,0.00014657,2]
[361370786,1747521053757,-2312.02,0.00014657,2]
[361370787,1747521053767,-450.0,0.00014657,2]
[361370788,1747521053779,-1174.67,0.00014657,2]
[361370789,1747521053790,-450.0,0.00014657,2]
[361370790,1747521053801,-1225.05,0.00014657,2]
[361370791,1747521053812,-486.2,0.00014657,2]
[361370792,1747521053824,-476.72,0.00014657,2]
[361370793,1747521053835,-450.0,0.00014657,2]
[361370794,1747521053846,-1105.75,0.00014657,2]
[361370795,1747521053857,-450.0,0.00014794,2]
[361370796,1747521053868,-450.0,0.00014794,2]
[361370797,1747521053879,-450.0,0.00014794,2]
[361370798,1747521053890,-450.0,0.00014794,2]
[361370799,1747521053901,-450.0,0.00014794,2]
[361370800,1747521053912,-450.0,0.00014794,2]
[361370801,1747521053924,-1493.08,0.00014794,2]
[361370802,1747521053934,-593.66,0.00014794,2]
[361370803,1747521053944,-450.0,0.00014794,2]
[361370804,1747521053955,-1073.48,0.00014794,2]
[361370805,1747521053965,-2017.34,0.00014794,2]
[361370806,1747521053976,-2081.27,0.00014794,2]
[361370807,1747521053986,-685.93,0.00014794,2]
[361370808,1747521053995,-614.85,0.00014794,2]
[361370809,1747521054006,-450.0,0.00014794,2]
[361370810,1747521054015,-450.0,0.00014794,2]
[361370811,1747521054026,-450.0,0.00014794,2]
[361370812,1747521054035,-450.0,0.00014794,2]
[361370813,1747521054044,-469.75,0.00014794,2]
[361370814,1747521054053,-796.83,0.00014794,2]
[361370815,1747521054063,-450.0,0.00014794,2]
[361370816,1747521054073,-450.0,0.00014794,2]
[361370817,1747521054082,-458.42,0.00014794,2]
[361370818,1747521054091,-465.46,0.00014794,2]
[361370819,1747521054101,-2788.01,0.00014794,2]
[361370820,1747521054111,-450.0,0.00014794,2]
[361370821,1747521054122,-942.99,0.00014794,2]
[361370822,1747521054132,-2875.75,0.00014794,2]
[361370823,1747521054326,-489.41,0.00014794,2]
[361370824,1747521054343,-572.41,0.00014794,2]
[361370825,1747521054355,-450.0,0.00014794,2]
[361370826,1747521054364,-717.19,0.00014794,2]
[361370827,1747521054374,-608.2,0.00014794,2]
[361370828,1747521054385,-590.87,0.00014794,2]
[361370829,1747521054395,-450.0,0.00014794,2]
[361370830,1747521054404,-2312.02,0.00014794,2]
[361370831,1747521054414,-450.0,0.00014794,2]
[361370832,1747521054423,-1174.67,0.00014794,2]
[361370833,1747521054432,-450.0,0.00014794,2]
[361370834,1747521054443,-1225.05,0.00014794,2]
[361370835,1747521054455,-486.2,0.00014794,2]
[361370836,1747521054466,-476.72,0.00014794,2]
[361370837,1747521054475,-450.0,0.00014794,2]
[361370838,1747521054487,-1105.75,0.00014794,2]
[361370839,1747521054496,-956.20101624,0.000149,2]
[361370840,1747521054505,-500.0,0.0001493,2]
[361370841,1747521054515,-450.0,0.00014931,2]
[361370842,1747521054524,-450.0,0.00014931,2]
[361370843,1747521054535,-450.0,0.00014931,2]
[361370844,1747521054544,-450.0,0.00014931,2]
[361370845,1747521054553,-233.14,0.00014931,2]
[361370846,1747521054563,-450.0,0.00014931,2]
[361370847,1747521054573,-1493.08,0.00014931,2]
[361370848,1747521054583,-593.66,0.00014931,2]
[361370849,1747521054592,-450.0,0.00014931,2]
[361370850,1747521054603,-1073.48,0.00014931,2]
[361370851,1747521054613,-2017.34,0.00014931,2]
[361370852,1747521054622,-2081.27,0.00014931,2]
[361370853,1747521054632,-685.93,0.00014931,2]
[361370854,1747521054642,-614.85,0.00014931,2]
[361370855,1747521054652,-450.0,0.00014931,2]
[361370856,1747521054662,-450.0,0.00014931,2]
[361370857,1747521054671,-450.0,0.00014931,2]
[361370858,1747521054682,-450.0,0.00014931,2]
[361370859,1747521054691,-469.75,0.00014931,2]
[361370860,1747521054701,-796.83,0.00014931,2]
[361370861,1747521054710,-450.0,0.00014931,2]
[361370862,1747521054720,-450.0,0.00014931,2]
[361370863,1747521054729,-151.0,0.00014931,2]
[361370864,1747521054739,-458.42,0.00014931,2]
[361370865,1747521054748,-465.46,0.00014931,2]
[361370866,1747521054758,-2788.01,0.00014931,2]
[361370867,1747521054767,-450.0,0.00014931,2]
[361370868,1747521054777,-942.99,0.00014931,2]
[361370869,1747521054786,-2875.75,0.00014931,2]
[361370870,1747521054795,-489.41,0.00014931,2]
[361370871,1747521054805,-572.41,0.00014931,2]
[361370872,1747521054814,-450.0,0.00014931,2]
[361370873,1747521054824,-717.19,0.00014931,2]
[361370874,1747521054833,-608.2,0.00014931,2]
[361370875,1747521054843,-590.87,0.00014931,2]
[361370876,1747521054852,-450.0,0.00014931,2]
[361370877,1747521054861,-2312.02,0.00014931,2]
[361370878,1747521054870,-450.0,0.00014931,2]
[361370879,1747521054879,-1174.67,0.00014931,2]
[361370880,1747521054888,-450.0,0.00014931,2]
[361370881,1747521054897,-1225.05,0.00014931,2]
[361370882,1747521054906,-486.2,0.00014931,2]
[361370883,1747521054915,-476.72,0.00014931,2]
[361370884,1747521054924,-450.0,0.00014931,2]
[361370885,1747521054933,-1105.75,0.00014931,2]
[361370886,1747521054943,-420.0,0.00015009,2]
[361370887,1747521054952,-215.0738,0.00015059,2]
[361370888,1747521054961,-500.0,0.00015067,2]
[361370889,1747521054970,-450.0,0.00015068,2]
[361370890,1747521054979,-450.0,0.00015068,2]
[361370891,1747521054988,-450.0,0.00015068,2]
[361370892,1747521054998,-450.0,0.00015068,2]
[361370893,1747521055008,-516.69,0.00015068,2]
[361370894,1747521055017,-1493.08,0.00015068,2]
[361370895,1747521055027,-593.66,0.00015068,2]
[361370896,1747521055036,-582.45,0.00015068,2]
[361370897,1747521055045,-1073.48,0.00015068,2]
[361370898,1747521055054,-2017.34,0.00015068,2]
[361370899,1747521055064,-2081.27,0.00015068,2]
[361370900,1747521055073,-685.93,0.00015068,2]
[361370901,1747521055082,-614.85,0.00015068,2]
[361370902,1747521055091,-243.42,0.00015068,2]
[361370903,1747521055101,-450.0,0.00015068,2]
[361370904,1747521055110,-450.0,0.00015068,2]
[361370905,1747521055119,-450.0,0.00015068,2]
[361370906,1747521055129,-469.75,0.00015068,2]
[361370907,1747521055137,-796.83,0.00015068,2]
[361370908,1747521055146,-450.0,0.00015068,2]
[361370909,1747521055155,-450.0,0.00015068,2]
[361370910,1747521055165,-458.42,0.00015068,2]
[361370911,1747521055174,-465.46,0.00015068,2]
[361370912,1747521055183,-2788.01,0.00015068,2]
[361370913,1747521055192,-450.0,0.00015068,2]
[361370914,1747521055201,-270.82100523,0.00015068,2]
[361370915,1747521055218,-672.16899477,0.00015068,2]
[361370916,1747521055228,-2875.75,0.00015068,2]
[361370917,1747521055241,-489.41,0.00015068,2]
[361370918,1747521055251,-572.41,0.00015068,2]
[361370919,1747521055260,-450.0,0.00015068,2]
[361370920,1747521055269,-717.19,0.00015068,2]
[361370921,1747521055278,-608.2,0.00015068,2]
[361370922,1747521055289,-590.87,0.00015068,2]
[361370923,1747521055298,-450.0,0.00015068,2]
[361370924,1747521055307,-671.89465757,0.00015068,2]
[361370943,1747521096162,-267.22938112,0.00013698,2]
[361370945,1747521098308,-213.3437845,0.00013698,2]
[361370953,1747521419315,-203.81651558,0.00012329,2]
[361370954,1747521424891,-30.72348442,0.00012329,2]
[361370955,1747521429555,-180.6088241,0.00012329,2]
[361370956,1747521431316,-14.8411759,0.00012329,2]
[361370957,1747521451004,-162.87,0.00012329,2]
[361370958,1747521451026,-63.68184806,0.00012329,2]
[361370959,1747521452808,-224.97153537,0.00012329,2]
[361370960,1747521454868,-222.30313215,0.00012329,2]
[361370961,1747521458108,-303.43348442,0.00012329,2]
[361370962,1747521459405,8096.86141327,0.00025673,30]
[361370963,1747521511683,4945.67,0.00025673,30]
[361370964,1747521516159,20311.76307155,0.00027,120]
[361370965,1747521591016,377.72,0.00027,120]
[361370966,1747521597978,3044.83587814,0.00027,120]
[361370970,1747522018167,450.0,0.00027397,120]
[361371085,1747522240217,-117.2757883,0.0001276,2]
[361371087,1747522240229,-294.3842392,0.0001276,2]
[361371088,1747522240239,-420.7001033,0.00012797,2]
[361371090,1747522240248,-965.8947468,0.00012842,2]
[361371091,1747522240257,-215.0738,0.0001369,2]
[361371092,1747522240266,-38.4265791,0.00013697,2]
[361371098,1747522242948,-261.5734209,0.00013697,2]
[361371099,1747522242958,-500.0,0.00013698,2]
[361371100,1747522242967,-500.0,0.00013698,2]
[361371101,1747522242976,-538.35128627,0.00013698,2]
[361371102,1747522242986,-421.68842109,0.00013698,2]
[361371103,1747522242995,-400.0,0.00013698,2]
[361371104,1747522243005,-450.0,0.00013698,2]
[361371105,1747522243014,-278.62,0.00013698,2]
[361371106,1747522243023,-450.0,0.00013698,2]
[361371108,1747522243033,-450.0,0.00013698,2]
[361371110,1747522243042,-450.0,0.00013698,2]
[361371112,1747522243052,-400.0,0.00013698,2]
[361371114,1747522243061,-450.0,0.00013698,2]
[361371115,1747522243070,-450.0,0.00013698,2]
[361371116,1747522243079,-449.44567002,0.00013698,2]
[361371117,1747522243088,-1000.0,0.00013698,2]
[361371118,1747522243097,-450.0,0.00013698,2]
[361371119,1747522243106,-450.0,0.00013698,2]
[361371120,1747522243115,-450.0,0.00013698,2]
[361371122,1747522243125,-450.0,0.00013698,2]
[361371123,1747522243134,-450.0,0.00013698,2]
[361371124,1747522243143,-371.79,0.00013698,2]
[361371125,1747522243152,-450.0,0.00013698,2]
[361371126,1747522243161,-450.0,0.00013698,2]
[361371127,1747522243170,-450.0,0.00013698,2]
[361371128,1747522243179,-1510.17,0.00013698,2]
[361371129,1747522243188,-450.0,0.00013698,2]
[361371130,1747522243198,-450.0,0.00013698,2]
[361371131,1747522243207,-510.79,0.00013698,2]
[361371132,1747522243216,-450.0,0.00013698,2]
[361371133,1747522243225,-450.0,0.00013698,2]
[361371134,1747522243234,-450.0,0.00013698,2]
[361371135,1747522243243,-296.83078456,0.00013698,2]
[361371136,1747522243253,-450.0,0.00013698,2]
[361371137,1747522243262,-450.0,0.00013698,2]
[361371138,1747522243271,-685.22,0.00013698,2]
[361371139,1747522243280,-645.03,0.00013698,2]
[361371140,1747522243289,-1320.69,0.00013698,2]
[361371141,1747522243298,-1557.7,0.00013698,2]
[361371142,1747522243307,-450.0,0.00013698,2]
[361371143,1747522243316,-788.73,0.00013698,2]
[361371144,1747522243326,-450.0,0.00013698,2]
[361371145,1747522243335,-450.0,0.00013698,2]
[361371146,1747522243344,-450.0,0.00013698,2]
[361371147,1747522243353,-450.0,0.00013698,2]
[361371148,1747522243362,-1127.35,0.00013698,2]
[361371149,1747522243371,-450.0,0.00013698,2]
[361371150,1747522243380,-1092.73,0.00013698,2]
[361371151,1747522243389,-581.47,0.00013698,2]
[361371152,1747522243398,-450.0,0.00013698,2]
[361371153,1747522243408,-450.0,0.00013698,2]
[361371154,1747522243417,-365.96026275,0.00013698,2]
[361371155,1747522243426,-450.0,0.00013698,2]
[361371156,1747522243435,-714.62,0.00013698,2]
[361371157,1747522243444,-450.0,0.00013698,2]
[361371158,1747522243454,-214.11881369,0.00013698,2]
[361371159,1747522243463,-450.0,0.00013698,2]
[361371160,1747522243473,-450.0,0.00013698,2]
[361371161,1747522243482,-174.787927,0.00013699,2]
[361371162,1747522243491,-167.58316,0.00013699,2]
[361371163,1747522243500,-564.95974309,0.00013834,2]
[361371164,1747522243509,-450.0,0.00013835,2]
[361371165,1747522243518,-450.0,0.00013835,2]
[361371166,1747522243528,-450.0,0.00013835,2]
[361371167,1747522243537,-450.0,0.00013835,2]
[361371168,1747522243546,-450.0,0.00013835,2]